fUSD/lending_fUSD_20251122
["ID","MTS","AMOUNT","RATE_DAILY","PERIOD"]
[394672646,1763851806319,1795.64569788,0.00017653,2]
[394672650,1763851831386,-721.59889273,0.00017653,2]
[394672651,1763851831473,-141.75540939,0.00017653,2]
[394672652,1763851831482,-168.0,0.0001919,2]
[394672653,1763851831492,-366.0,0.0001919,2]
[394672654,1763851831501,-150.0,0.000192,7]
[394672655,1763851831510,-500.0,0.00019448,2]
[394672656,1763851831519,-168.0,0.00019591,2]
[394672657,1763851831527,-168.0,0.00019621,2]
[394672658,1763851831536,-34.62066166,0.00020187,2]
[394672659,1763851831547,-704.056,0.00020187,2]
[394672660,1763851831558,-53.84333834,0.00020187,2]
[394672661,1763851831567,-2659.0,0.00020653,2]
[394672662,1763851831576,-672.761187,0.00020988,2]
[394672663,1763851831585,-426.67177017,0.00021833,2]
[394672664,1763851831594,-500.0,0.00021917,2]
[394672665,1763851831603,-500.0,0.00021917,2]
[394672666,1763851831612,-500.0,0.00021917,2]
[394672667,1763851831622,-500.0,0.00021917,2]
[394672668,1763851831631,-500.0,0.00021917,2]
[394672669,1763851831640,-500.0,0.00021917,2]
[394672670,1763851831649,-500.0,0.00021917,2]
[394672671,1763851831658,-500.0,0.00021917,2]
[394672672,1763851831667,-500.0,0.00021917,2]
[394672673,1763851831676,-500.0,0.00021917,2]
[394672674,1763851831685,-500.0,0.00021917,2]
[394672675,1763851831694,-500.0,0.00021917,2]
[394672676,1763851831703,-325.87922862,0.00021917,2]
[394672677,1763851831712,-4114.2527743,0.00022492,2]
[394672678,1763851831721,-177.4322565,0.00022492,2]
[394672679,1763851831730,-3026.82507241,0.00023269,2]
[394672681,1763851831739,-185.9,0.00023521,30]
[394672682,1763851831748,-500.0,0.00023526,2]
[394672683,1763851831756,-456.848,0.00023653,2]
[394672684,1763851831766,-500.0,0.00023993,2]
[394672685,1763851831775,-19278.47799682,0.00024225,2]
[394672686,1763851831784,-256.21845577,0.00024291,2]
[394672687,1763851831792,-553.90306097,0.00024291,2]
[394672688,1763851831801,-324.11537617,0.00024373,2]
[394672689,1763851831810,-500.0,0.00024385,2]
[394672690,1763851831819,-684.95,0.00024385,2]
[394672691,1763851831828,-500.0,0.00024385,2]
[394672692,1763851831836,-443.45136125,0.00024385,2]
[394672693,1763851831845,-500.0,0.00024385,2]
[394672694,1763851831854,-258.14459888,0.00024385,2]
[394672695,1763851831863,-175.52162589,0.00024385,2]
[394672696,1763851831872,-196.51882602,0.00024385,2]
[394672697,1763851831881,-360.38323336,0.00024385,2]
[394672698,1763851831890,-218791.82653653,0.00024386,2]
[394672699,1763851831901,-50418.44199478,0.00024386,2]
[394672700,1763851831911,-361.40234145,0.00024386,2]
[394672701,1763851831922,-3157.84528586,0.00024386,2]
[394672702,1763851831936,-250.0,0.00024386,2]
[394672703,1763851831948,-3773.8207,0.00024386,2]
[394672707,1763851837359,-895.5214939,0.00024386,2]
[394672708,1763851837370,-1407.98186965,0.00024386,2]
[394672709,1763851837383,-605.50146086,0.00024386,2]
[394672712,1763851837410,-689.32368187,0.00024386,2]
[394672713,1763851837422,-23637.39674984,0.00024386,2]
[394672714,1763851837533,-624.95414897,0.00024386,2]
[394672722,1763851839456,-471.31527717,0.00024386,2]
[394672723,1763851839468,-382.90009723,0.00024386,2]
[394672743,1763851839764,-9345.31656189,0.00024386,2]
[394672745,1763851839774,-9999.99,0.00024391,2]
[394672747,1763851839783,-659.69894808,0.00024528,2]
[394672773,1763851843209,-468.18481117,0.00024528,2]
[394672774,1763851843219,-684.95,0.00024659,2]
[394672775,1763851843229,-1000.0,0.000247,2]
[394672776,1763851843238,-262.0,0.000247,2]
[394672777,1763851843247,-151.84270908,0.000248,2]
[394672778,1763851843256,-20412.5160992,0.000248,3]
[394672791,1763851846104,-15027.446937,0.000248,3]
[394672792,1763851846113,-157.04721114,0.00024833,2]
[394672793,1763851846122,-684.95,0.00024933,2]
[394672794,1763851846132,-166.0,0.00025,7]
[394672795,1763851846141,-684.95,0.00025207,2]
[394672796,1763851846151,-684.95,0.00025481,2]
[394672797,1763851846160,-164.54727035,0.00025567,2]
[394672798,1763851846169,-166.66,0.00025658,2]
[394672799,1763851846181,-198.98,0.00025709,2]
[394672800,1763851846190,-684.95,0.00025755,2]
[394672801,1763851846199,-684.95,0.00026029,2]
[394672802,1763851846208,-684.95,0.00026303,2]
[394672803,1763851846218,-478.87,0.00026356,2]
[394672804,1763851846227,-478.87,0.00026356,2]
[394672805,1763851846236,-701.23,0.00026356,2]
[394672806,1763851846245,-684.95,0.00026577,2]
[394672807,1763851846254,-553.90306096,0.00026664,2]
[394672808,1763851846263,-792.52,0.00026676,2]
[394672809,1763851846272,-684.95,0.00026851,2]
[394672810,1763851846283,-150.0,0.00026877,2]
[394672811,1763851846292,-11813.3210121,0.00026981,3]
[394672812,1763851846301,-301.4,0.00027041,2]
[394672813,1763851846309,-394.73181579,0.00027125,2]
[394672814,1763851846320,-254.48759795,0.00027125,2]
[394672836,1763852349383,171.07,0.00012929,2]
[394672837,1763852349573,171.07,0.00013609,2]
[394672838,1763852349769,171.07,0.0001429,2]
[394672912,1763852580421,200.0,0.00014656,2]
[394673027,1763853031618,-171.07,0.0001497,2]
[394673029,1763853031628,-171.07,0.00015651,2]
[394673031,1763853031638,-171.07,0.00016331,2]
[394673033,1763853031647,-171.07,0.00017012,2]
[394673035,1763853031656,-150.0,0.00017513,2]
[394673037,1763853031665,-171.07,0.00017692,2]
[394673039,1763853031674,-178.81358798,0.00017799,2]
[394673041,1763853031683,-631.466576,0.00017822,2]
[394673043,1763853031692,-2659.0,0.00017844,2]
[394673045,1763853031701,-561.0,0.00017844,2]
[394673047,1763853031710,-300.0,0.00017899,2]
[394673049,1763853031719,-354.09053846,0.00017899,2]
[394673051,1763853031730,-845.90946154,0.00017899,2]
[394673054,1763853031739,-300.0,0.00017899,2]
[394673056,1763853031749,-609.0,0.000179,2]
[394673058,1763853031758,-576.0,0.000179,2]
[394673060,1763853031767,-171.07,0.00018372,2]
[394673061,1763853031777,-202.57361855,0.0001889,2]
[394673062,1763853031786,-171.07,0.00019053,2]
[394673063,1763853031795,-150.0,0.000192,7]
[394673064,1763853031804,-420.0,0.00019532,2]
[394673065,1763853031813,-171.07,0.00019733,2]
[394673066,1763853031822,-480.99,0.00020279,2]
[394673067,1763853031831,-171.07,0.00020414,2]
[394673068,1763853031840,-612.93904651,0.00020547,2]
[394673069,1763853031849,-561.0,0.00020844,2]
[394673070,1763853031859,-64.6726887,0.000209,2]
[394673071,1763853031871,-497.76627144,0.000209,2]
[394673073,1763853031883,-46.56103986,0.000209,2]
[394673075,1763853031892,-576.0,0.000209,2]
[394673077,1763853031901,-179.23311433,0.00020993,2]
[394673079,1763853031914,-2035.50688567,0.00020993,2]
[394673080,1763853031923,-171.07,0.00021094,2]
[394673081,1763853031931,-587.0,0.00021314,2]
[394673082,1763853031940,-171.07,0.00021775,2]
[394673083,1763853031949,-171.07,0.00022455,2]
[394673085,1763853031958,-171.07,0.00023136,2]
[394673087,1763853031968,-500.0,0.00023196,2]
[394673088,1763853031977,-500.0,0.00023196,2]
[394673090,1763853031985,-329.72147912,0.00023196,2]
[394673092,1763853031995,-500.0,0.00023196,2]
[394673093,1763853032004,-500.0,0.00023196,2]
[394673095,1763853032013,-262.36450666,0.00023196,2]
[394673097,1763853032023,-631.9665273,0.00023196,2]
[394673098,1763853032032,-270.00732992,0.00023196,2]
[394673100,1763853032041,-315.53561205,0.00023196,2]
[394673102,1763853032050,-500.0,0.00023196,2]
[394673103,1763853032060,-500.0,0.00023196,2]
[394673105,1763853032070,-500.0,0.00023196,2]
[394673107,1763853032079,-500.0,0.00023196,2]
[394673108,1763853032089,-629.56105074,0.00023196,2]
[394673110,1763853032098,-500.0,0.00023196,2]
[394673111,1763853032107,-500.0,0.00023196,2]
[394673112,1763853032116,-500.0,0.00023196,2]
[394673113,1763853032126,-500.0,0.00023196,2]
[394673114,1763853032135,-610.55442098,0.00023196,2]
[394673115,1763853032145,-500.0,0.00023196,2]
[394673116,1763853032154,-500.0,0.00023196,2]
[394673117,1763853032164,-500.0,0.00023196,2]
[394673118,1763853032173,-500.0,0.00023196,2]
[394673119,1763853032182,-500.0,0.00023196,2]
[394673120,1763853032192,-7392.59356773,0.00023197,2]
[394673121,1763853032203,-126426.27433352,0.00023197,2]
[394673122,1763853032218,-15045.44,0.00023197,2]
[394673123,1763853032229,-4070.3640288,0.00023197,2]
[394673124,1763853032240,-701.99295344,0.00023197,2]
[394673128,1763853037770,-754.03002222,0.00023197,2]
[394673132,1763853039689,-10953.24509429,0.00023197,2]
[394673133,1763853039699,-823.0,0.00023258,2]
[394673134,1763853039708,-484.30885166,0.00023268,2]
[394673135,1763853039718,-667.01,0.00023368,2]
[394673136,1763853039727,-2751.0,0.00023393,2]
[394673137,1763853039736,-200.0,0.00023415,2]
[394673138,1763853039745,-171.07,0.00023816,2]
[394673139,1763853039754,-609.0,0.000239,2]
[394673140,1763853039764,-576.0,0.000239,2]
[394673141,1763853039773,-4130.89501046,0.00024066,2]
[394673142,1763853039803,-1279.875,0.00024066,2]
[394673143,1763853039820,-2128.32048877,0.00024066,2]
[394673144,1763853039832,-269.7274608,0.00024066,2]
[394673145,1763853039843,-386.33901698,0.00024066,2]
[394673146,1763853039855,-588.741384,0.00024066,2]
[394673147,1763853039907,-3894.27687116,0.00024066,2]
[394673148,1763853039918,-495.68719811,0.00024066,2]
[394673174,1763853043608,-337.27249606,0.00024066,2]
[394673175,1763853043619,-6855.28507366,0.00024066,2]
[394673176,1763853043628,-500.0,0.00024284,2]
[394673177,1763853043638,-500.0,0.00024284,2]
[394673178,1763853043647,-500.0,0.00024284,2]
[394673179,1763853043656,-159.38328449,0.00024284,2]
[394673180,1763853043666,-500.0,0.00024284,2]
[394673181,1763853043675,-500.0,0.00024284,2]
[394673182,1763853043684,-500.0,0.00024284,2]
[394673183,1763853043693,-500.0,0.00024284,2]
[394673184,1763853043703,-500.0,0.00024284,2]
[394673185,1763853043713,-500.0,0.00024284,2]
[394673186,1763853043723,-500.0,0.00024284,2]
[394673187,1763853043732,-500.0,0.00024284,2]
[394673188,1763853043742,-250477.6718,0.00024285,2]
[394673189,1763853043752,-500.0,0.00024384,2]
[394673190,1763853043761,-500.0,0.00024385,2]
[394673191,1763853043771,-500.0,0.00024385,2]
[394673192,1763853043780,-500.0,0.00024385,2]
[394673193,1763853043791,-500.0,0.00024385,2]
[394673194,1763853043801,-620.66853926,0.00024385,2]
[394673195,1763853043811,-500.0,0.00024385,2]
[394673196,1763853043821,-500.0,0.00024385,2]
[394673197,1763853043831,-507.7368462,0.00024385,2]
[394673198,1763853043841,-500.0,0.00024385,2]
[394673199,1763853043851,-500.0,0.00024385,2]
[394673200,1763853043860,-523.48692307,0.00024385,2]
[394673201,1763853043870,-352.62254252,0.00024385,2]
[394673202,1763853043879,-500.0,0.00024385,2]
[394673203,1763853043888,-515.28143509,0.00024385,2]
[394673204,1763853043898,-500.0,0.00024385,2]
[394673205,1763853043908,-500.0,0.00024385,2]
[394673206,1763853043918,-425.16936121,0.00024385,2]
[394673207,1763853043927,-500.0,0.00024385,2]
[394673208,1763853043936,-500.0,0.00024385,2]
[394673209,1763853043946,-500.0,0.00024385,2]
[394673210,1763853044135,-500.0,0.00024385,2]
[394673211,1763853044145,-500.0,0.00024385,2]
[394673212,1763853044155,-500.0,0.00024385,2]
[394673213,1763853044165,-516.03879961,0.00024385,2]
[394673214,1763853044177,-500.0,0.00024385,2]
[394673215,1763853044187,-500.0,0.00024385,2]
[394673216,1763853044196,-500.0,0.00024385,2]
[394673217,1763853044204,-558.86976365,0.00024385,2]
[394673218,1763853044211,-500.0,0.00024385,2]
[394673219,1763853044217,-500.0,0.00024385,2]
[394673220,1763853044226,-500.0,0.00024385,2]
[394673221,1763853044235,-500.0,0.00024385,2]
[394673222,1763853044245,-500.0,0.00024385,2]
[394673223,1763853044255,-500.0,0.00024385,2]
[394673224,1763853044264,-500.0,0.00024385,2]
[394673225,1763853044273,-500.0,0.00024385,2]
[394673226,1763853044283,-500.0,0.00024385,2]
[394673227,1763853044293,-232.34320674,0.00024385,2]
[394673228,1763853044303,-500.0,0.00024385,2]
[394673229,1763853044312,-500.0,0.00024385,2]
[394673230,1763853044324,-500.0,0.00024385,2]
[394673231,1763853044334,-500.0,0.00024385,2]
[394673232,1763853044343,-500.0,0.00024385,2]
[394673233,1763853044353,-500.0,0.00024385,2]
[394673234,1763853044364,-500.0,0.00024385,2]
[394673235,1763853044374,-500.0,0.00024385,2]
[394673236,1763853044384,-500.0,0.00024385,2]
[394673237,1763853044393,-500.0,0.00024385,2]
[394673238,1763853044404,-500.0,0.00024385,2]
[394673239,1763853044413,-500.0,0.00024385,2]
[394673240,1763853044423,-500.0,0.00024385,2]
[394673241,1763853044433,-500.0,0.00024385,2]
[394673242,1763853044443,-500.0,0.00024385,2]
[394673243,1763853044453,-500.0,0.00024385,2]
[394673244,1763853044462,-500.0,0.00024385,2]
[394673245,1763853044472,-500.0,0.00024385,2]
[394673246,1763853044482,-600.0,0.00024385,5]
[394673247,1763853044491,-171.07,0.00024497,2]
[394673248,1763853044501,-500.0,0.00024558,2]
[394673249,1763853044510,-500.0,0.00024558,2]
[394673250,1763853044520,-500.0,0.00024558,2]
[394673251,1763853044529,-500.0,0.00024558,2]
[394673252,1763853044539,-500.0,0.00024558,2]
[394673253,1763853044548,-578.99170067,0.00024558,2]
[394673254,1763853044557,-500.0,0.00024558,2]
[394673255,1763853044567,-500.0,0.00024558,2]
[394673256,1763853044576,-500.0,0.00024558,2]
[394673257,1763853044586,-500.0,0.00024558,2]
[394673258,1763853044595,-500.0,0.00024558,2]
[394673259,1763853044604,-500.0,0.00024658,2]
[394673260,1763853044613,-600.0,0.00024659,5]
[394673261,1763853044623,-160.34458318,0.00024659,2]
[394673262,1763853044632,-392.15292496,0.00024659,2]
[394673263,1763853044641,-500.0,0.00024659,2]
[394673264,1763853044651,-186.08121917,0.00024659,2]
[394673265,1763853044661,-258.85235955,0.00024659,2]
[394673266,1763853044670,-253.62,0.00024659,2]
[394673267,1763853044679,-500.0,0.00024659,2]
[394673268,1763853044688,-317.19080601,0.00024659,2]
[394673269,1763853044697,-224.40535709,0.00024659,2]
[394673270,1763853044706,-151.60248292,0.00024659,2]
[394673271,1763853044715,-268.81625522,0.00024659,2]
[394673272,1763853044725,-500.0,0.00024659,2]
[394673273,1763853044734,-630.38397235,0.00024659,2]
[394673274,1763853044743,-500.0,0.00024659,2]
[394673275,1763853044753,-500.0,0.00024659,2]
[394673276,1763853044762,-233.4252596,0.00024659,2]
[394673277,1763853044772,-549.88799826,0.00024659,2]
[394673278,1763853044781,-182.33941336,0.00024659,2]
[394673279,1763853044791,-622.23009433,0.00024659,2]
[394673280,1763853044801,-500.0,0.00024659,2]
[394673281,1763853044810,-159.78449983,0.00024659,2]
[394673282,1763853044819,-500.0,0.00024659,2]
[394673283,1763853044828,-500.0,0.00024659,2]
[394673284,1763853044838,-500.0,0.00024659,2]
[394673285,1763853044847,-614.74958192,0.00024659,2]
[394673286,1763853044856,-500.0,0.00024659,2]
[394673287,1763853044865,-500.0,0.00024659,2]
[394673288,1763853044874,-500.0,0.00024659,2]
[394673289,1763853044884,-500.0,0.00024659,2]
[394673290,1763853044892,-500.0,0.00024659,2]
[394673291,1763853044902,-500.0,0.00024659,2]
[394673292,1763853044911,-500.0,0.00024659,2]
[394673293,1763853044920,-500.0,0.00024659,2]
[394673294,1763853044929,-500.0,0.00024659,2]
[394673295,1763853044939,-500.0,0.00024659,2]
[394673296,1763853044948,-500.0,0.00024659,2]
[394673297,1763853044957,-500.0,0.00024659,2]
[394673298,1763853044967,-500.0,0.00024659,2]
[394673299,1763853044976,-500.0,0.00024659,2]
[394673300,1763853044985,-500.0,0.00024659,2]
[394673301,1763853044994,-500.0,0.00024659,2]
[394673302,1763853045003,-500.0,0.00024659,2]
[394673303,1763853045012,-500.0,0.00024659,2]
[394673304,1763853045021,-500.0,0.00024659,2]
[394673305,1763853045031,-500.0,0.00024659,2]
[394673306,1763853045041,-500.0,0.00024659,2]
[394673307,1763853045050,-500.0,0.00024659,2]
[394673308,1763853045059,-323.86150375,0.00024773,2]
[394673309,1763853045068,-500.0,0.00024773,2]
[394673310,1763853045078,-500.0,0.00024773,2]
[394673311,1763853045087,-500.0,0.00024773,2]
[394673312,1763853045096,-590.90994192,0.00024773,2]
[394673313,1763853045105,-500.0,0.00024773,2]
[394673314,1763853045115,-500.0,0.00024773,2]
[394673315,1763853045125,-501.89985853,0.00024773,2]
[394673316,1763853045134,-500.0,0.00024773,2]
[394673317,1763853045143,-500.0,0.00024773,2]
[394673318,1763853045152,-500.0,0.00024773,2]
[394673319,1763853045161,-173.84480208,0.00024773,2]
[394673320,1763853045170,-500.0,0.00024773,2]
[394673321,1763853045179,-500.42787663,0.00024773,2]
[394673322,1763853045189,-500.0,0.00024773,2]
[394673323,1763853045198,-155.82755617,0.00024773,2]
[394673324,1763853045207,-506.97778639,0.00024773,2]
[394673325,1763853045216,-443.44977622,0.00024773,2]
[394673326,1763853045226,-500.0,0.00024773,2]
[394673327,1763853045235,-500.0,0.00024773,2]
[394673328,1763853045245,-501.0431648,0.00024773,2]
[394673329,1763853045255,-500.0,0.00024773,2]
[394673330,1763853045264,-281.31610605,0.00024773,2]
[394673331,1763853045274,-104467.021426,0.000248,3]
[394673332,1763853045284,-500.0,0.00024832,2]
[394673333,1763853045294,-500.0,0.00024832,2]
[394673334,1763853045304,-500.0,0.00024832,2]
[394673335,1763853045313,-500.0,0.00024832,2]
[394673336,1763853045324,-500.0,0.00024832,2]
[394673337,1763853045333,-500.0,0.00024832,2]
[394673338,1763853045343,-376.75736761,0.00024832,2]
[394673339,1763853045352,-500.0,0.00024832,2]
[394673340,1763853045362,-500.0,0.00024832,2]
[394673341,1763853045372,-500.0,0.00024832,2]
[394673342,1763853045381,-11607.4468251,0.00024923,3]
[394673343,1763853045390,-500.0,0.00024932,2]
[394673344,1763853045403,-478.21113887,0.00024933,2]
[394673345,1763853045412,-151.49224538,0.00024933,2]
[394673346,1763853045422,-286.94534701,0.00024933,2]
[394673347,1763853045431,-266.30531575,0.00024933,2]
[394673348,1763853045440,-437.56281849,0.00024933,2]
[394673349,1763853045449,-500.0,0.00024933,2]
[394673350,1763853045458,-410.69628286,0.00024933,2]
[394673351,1763853045468,-500.0,0.00024933,2]
[394673352,1763853045477,-500.0,0.00024933,2]
[394673353,1763853045486,-500.0,0.00024933,2]
[394673354,1763853045495,-500.0,0.00024933,2]
[394673355,1763853045504,-500.0,0.00024933,2]
[394673356,1763853045514,-500.0,0.00024933,2]
[394673358,1763853045524,-500.0,0.00024933,2]
[394673359,1763853045534,-500.0,0.00024933,2]
[394673362,1763853045544,-500.0,0.00024933,2]
[394673363,1763853045552,-500.0,0.00024933,2]
[394673364,1763853045561,-617.08803231,0.00024933,2]
[394673365,1763853045570,-500.0,0.00024933,2]
[394673366,1763853045579,-500.0,0.00024933,2]
[394673367,1763853045589,-500.0,0.00024933,2]
[394673368,1763853045598,-500.0,0.00024933,2]
[394673369,1763853045607,-500.0,0.00024933,2]
[394673370,1763853045617,-344.09381756,0.00024933,2]
[394673371,1763853045626,-500.0,0.00024933,2]
[394673372,1763853045635,-500.0,0.00024933,2]
[394673373,1763853045644,-500.0,0.00024933,2]
[394673374,1763853045653,-500.0,0.00024933,2]
[394673375,1763853045664,-500.0,0.00024933,2]
[394673376,1763853045673,-500.0,0.00024933,2]
[394673377,1763853045682,-500.0,0.00024933,2]
[394673379,1763853045691,-528.71795241,0.00025106,2]
[394673380,1763853045700,-500.0,0.00025106,2]
[394673381,1763853045709,-500.0,0.00025106,2]
[394673382,1763853045719,-500.0,0.00025106,2]
[394673383,1763853045728,-500.0,0.00025106,2]
[394673384,1763853045738,-500.0,0.00025106,2]
[394673385,1763853045747,-500.0,0.00025106,2]
[394673386,1763853045756,-500.0,0.00025106,2]
[394673387,1763853045765,-500.0,0.00025106,2]
[394673388,1763853045775,-484.30885161,0.00025116,2]
[394673389,1763853045784,-500.0,0.0002514,2]
[394673390,1763853045796,-171.07,0.00025177,2]
[394673391,1763853045806,-500.0,0.00025206,2]
[394673392,1763853045816,-300.88705309,0.00025207,2]
[394673393,1763853045825,-386.5000209,0.00025207,2]
[394673395,1763853045834,-500.0,0.00025207,2]
[394673396,1763853045844,-500.0,0.00025207,2]
[394673397,1763853045853,-475.95268096,0.00025207,2]
[394673398,1763853045862,-488.85311632,0.00025207,2]
[394673399,1763853045871,-235.05733327,0.00025207,2]
[394673400,1763853045881,-500.0,0.00025207,2]
[394673401,1763853045890,-285.41822411,0.00025207,2]
[394673402,1763853045899,-172.07747228,0.00025207,2]
[394673403,1763853045908,-184.74283026,0.00025207,2]
[394673404,1763853045917,-500.0,0.00025207,2]
[394673405,1763853045927,-500.0,0.00025207,2]
[394673406,1763853045936,-500.0,0.00025207,2]
[394673407,1763853045945,-347.50016489,0.00025207,2]
[394673408,1763853045954,-500.0,0.00025207,2]
[394673409,1763853045963,-500.0,0.00025207,2]
[394673410,1763853045972,-500.0,0.00025207,2]
[394673411,1763853045981,-500.0,0.00025207,2]
[394673412,1763853045990,-500.0,0.00025207,2]
[394673414,1763853045999,-500.0,0.00025207,2]
[394673415,1763853046009,-500.0,0.00025207,2]
[394673416,1763853046018,-500.0,0.00025207,2]
[394673417,1763853046027,-1000.0,0.00025321,2]
[394673418,1763853046036,-1000.0,0.00025321,2]
[394673419,1763853046047,-1000.0,0.00025321,2]
[394673420,1763853046056,-161.96034447,0.00025321,2]
[394673421,1763853046065,-1000.0,0.00025321,2]
[394673422,1763853046075,-714.18785689,0.00025321,2]
[394673423,1763853046084,-645.28559714,0.00025321,2]
[394673424,1763853046094,-607.52246125,0.00025321,2]
[394673425,1763853046103,-1000.0,0.00025321,2]
[394673426,1763853046112,-500.0,0.00025321,2]
[394673427,1763853046121,-1000.0,0.00025321,2]
[394673428,1763853046130,-500.0,0.0002538,2]
[394673429,1763853046139,-500.0,0.0002538,2]
[394673430,1763853046148,-500.0,0.0002538,2]
[394673431,1763853046156,-500.0,0.0002538,2]
[394673432,1763853046166,-500.0,0.0002538,2]
[394673433,1763853046175,-1152.0,0.0002538,2]
[394673434,1763853046183,-393.00317773,0.0002538,2]
[394673435,1763853046192,-500.0,0.0002538,2]
[394673436,1763853046201,-500.0,0.0002538,2]
[394673437,1763853046210,-11607.4468251,0.00025471,3]
[394673438,1763853046219,-500.0,0.0002548,2]
[394673439,1763853046228,-289.77566585,0.00025481,2]
[394673440,1763853046237,-643.4839841,0.00025481,2]
[394673441,1763853046246,-235.7760722,0.00025481,2]
[394673442,1763853046255,-500.0,0.00025481,2]
[394673443,1763853046264,-500.0,0.00025481,2]
[394673444,1763853046273,-500.0,0.00025481,2]
[394673445,1763853046282,-500.0,0.00025481,2]
[394673446,1763853046291,-500.0,0.00025481,2]
[394673447,1763853046300,-500.0,0.00025481,2]
[394673448,1763853046309,-500.0,0.00025481,2]
[394673449,1763853046318,-500.0,0.00025481,2]
[394673450,1763853046332,-500.0,0.00025481,2]
[394673451,1763853046340,-500.0,0.00025481,2]
[394673452,1763853046349,-500.0,0.00025481,2]
[394673453,1763853046359,-500.0,0.00025654,2]
[394673454,1763853046369,-500.0,0.00025654,2]
[394673455,1763853046378,-500.0,0.00025654,2]
[394673456,1763853046388,-500.0,0.00025654,2]
[394673457,1763853046398,-500.0,0.00025654,2]
[394673458,1763853046407,-500.0,0.00025654,2]
[394673459,1763853046416,-150.0,0.00025742,2]
[394673460,1763853046425,-150.0,0.00025742,2]
[394673461,1763853046435,-150.0,0.00025742,2]
[394673462,1763853046445,-150.0,0.00025742,2]
[394673464,1763853046454,-150.0,0.00025742,2]
[394673465,1763853046463,-150.0,0.00025742,2]
[394673466,1763853046472,-150.0,0.00025742,2]
[394673467,1763853046481,-150.00000001,0.00025742,2]
[394673468,1763853046491,-150.0,0.00025742,2]
[394673469,1763853046500,-150.0,0.00025742,2]
[394673470,1763853046509,-150.0,0.00025742,2]
[394673471,1763853046519,-150.0,0.00025742,2]
[394673472,1763853046528,-150.0,0.00025742,2]
[394673473,1763853046537,-500.0,0.00025754,2]
[394673474,1763853046547,-500.0,0.00025755,2]
[394673475,1763853046556,-283.32423315,0.00025755,2]
[394673476,1763853046565,-500.0,0.00025755,2]
[394673477,1763853046574,-500.0,0.00025755,2]
[394673478,1763853046583,-644.32,0.00025755,2]
[394673479,1763853046592,-586.35873606,0.00025755,2]
[394673480,1763853046602,-607.16589524,0.00025755,2]
[394673481,1763853046611,-500.0,0.00025755,2]
[394673482,1763853046620,-500.0,0.00025755,2]
[394673483,1763853046629,-646.13471054,0.00025755,2]
[394673484,1763853046638,-500.0,0.00025755,2]
[394673485,1763853046647,-171.07,0.00025858,2]
[394673486,1763853046656,-503.88116874,0.00025868,2]
[394673487,1763853046665,-1510.85568218,0.00025868,2]
[394673488,1763853046674,-932.78038,0.00025868,2]
[394673489,1763853046683,-151.16713156,0.00025868,2]
[394673490,1763853046692,-1500.0,0.00025868,2]
[394673491,1763853046701,-1500.0,0.00025868,2]
[394673492,1763853046710,-192.8215382,0.00025928,2]
[394673493,1763853046719,-586.6601042,0.00025928,2]
[394673494,1763853046729,-500.0,0.00025928,2]
[394673495,1763853046738,-500.0,0.00025928,2]
[394673496,1763853046747,-500.0,0.00025928,2]
[394673497,1763853046756,-500.0,0.00025928,2]